[Event "Titled Tuesday Blitz April 11 Early 2023"]
[White "Garcia Pantoja, Roberto"]
[Black "Rottenwohrer Suarez, Juan"]
[WhiteFideId "3509265"]
[BlackFideId "32068182"]
[WhiteElo "2542"]
[BlackElo "2174"]
[Result "1/2-1/2"]
[Round "01"]
[TimeControl "180+2"]
[Date "2023.04.11"]
[WhiteClock "0:00:21"]
[BlackClock "0:00:06"]

1. e4 {[%clk 0:02:59]}  c5 {[%clk 0:02:58]} 2. Nc3 {[%clk 0:02:58]}  g6 {[%clk 0:02:58]} 3. d4 {[%clk 0:02:57]}  cxd4 {[%clk 0:02:58]} 4. Qxd4 {[%clk 0:02:57]}  Nf6 {[%clk 0:02:58]} 5. Nf3 {[%clk 0:02:58]}  Nc6 {[%clk 0:02:56]} 6. Qa4 {[%clk 0:02:58]}  d6 {[%clk 0:02:54]} 7. e5 {[%clk 0:02:58]}  dxe5 {[%clk 0:02:55]} 8. Nxe5 {[%clk 0:02:59]}  Bd7 {[%clk 0:02:53]} 9. Nxd7 {[%clk 0:02:52]}  Qxd7 {[%clk 0:02:54]} 10. Be2 {[%clk 0:02:41]}  Bg7 {[%clk 0:02:53]} 11. O-O {[%clk 0:02:41]}  O-O {[%clk 0:02:53]} 12. Bf4 {[%clk 0:02:40]}  a6 {[%clk 0:02:43]} 13. Rad1 {[%clk 0:02:39]}  Qf5 {[%clk 0:02:39]} 14. Be3 {[%clk 0:02:26]}  Rfd8 {[%clk 0:02:28]} 15. Bf3 {[%clk 0:02:22]}  b5 {[%clk 0:02:19]} 16. Qb3 {[%clk 0:02:21]}  Rdc8 {[%clk 0:01:54]} 17. Nd5 {[%clk 0:02:13]}  Nxd5 {[%clk 0:01:52]} 18. Rxd5 {[%clk 0:02:14]}  Qe6 {[%clk 0:01:47]} 19. c3 {[%clk 0:02:12]}  Na5 {[%clk 0:01:44]} 20. Qb4 {[%clk 0:02:10]}  Nc4 {[%clk 0:01:44]} 21. Bc1 {[%clk 0:01:58]}  Ne5 {[%clk 0:01:39]} 22. Rxe5 {[%clk 0:01:47]}  Qxe5 {[%clk 0:01:38]} 23. Bxa8 {[%clk 0:01:47]}  Rxa8 {[%clk 0:01:39]} 24. Rd1 {[%clk 0:01:45]}  h5 {[%clk 0:01:34]} 25. a4 {[%clk 0:01:37]}  Rc8 {[%clk 0:01:30]} 26. axb5 {[%clk 0:01:36]}  axb5 {[%clk 0:01:31]} 27. h3 {[%clk 0:01:36]}  Qe2 {[%clk 0:01:24]} 28. Qb3 {[%clk 0:01:33]}  b4 {[%clk 0:01:07]} 29. cxb4 {[%clk 0:01:25]}  Rc2 {[%clk 0:01:06]} 30. Rf1 {[%clk 0:01:25]}  Bd4 {[%clk 0:01:00]} 31. Be3 {[%clk 0:01:21]}  Bxe3 {[%clk 0:00:56]} 32. Qxe3 {[%clk 0:01:22]}  Qxe3 {[%clk 0:00:54]} 33. fxe3 {[%clk 0:01:23]}  Rxb2 {[%clk 0:00:55]} 34. Rf4 {[%clk 0:01:22]}  e5 {[%clk 0:00:49]} 35. Rc4 {[%clk 0:01:21]}  f5 {[%clk 0:00:45]} 36. h4 {[%clk 0:01:13]}  Kf7 {[%clk 0:00:43]} 37. Rc7+ {[%clk 0:01:12]}  Kf6 {[%clk 0:00:41]} 38. Rc6+ {[%clk 0:01:12]}  Kf7 {[%clk 0:00:42]} 39. Rb6 {[%clk 0:01:12]}  Re2 {[%clk 0:00:31]} 40. Rb7+ {[%clk 0:01:08]}  Kf6 {[%clk 0:00:28]} 41. Rb6+ {[%clk 0:00:40]}  Kf7 {[%clk 0:00:28]} 42. Rb7+ {[%clk 0:00:40]}  Kf6 {[%clk 0:00:20]} 43. b5 {[%clk 0:00:25]}  Rxe3 {[%clk 0:00:20]} 44. b6 {[%clk 0:00:25]}  Rb3 {[%clk 0:00:19]} 45. Rb8 {[%clk 0:00:26]}  e4 {[%clk 0:00:17]} 46. Kf2 {[%clk 0:00:21]}  f4 {[%clk 0:00:10]} 47. b7 {[%clk 0:00:20]}  Rb2+ {[%clk 0:00:09]} 48. Kf1 {[%clk 0:00:20]}  Kg7 {[%clk 0:00:10]} 49. Ke1 {[%clk 0:00:19]}  g5 {[%clk 0:00:03]} 50. hxg5 {[%clk 0:00:17]}  h4 {[%clk 0:00:03]} 51. Re8 {[%clk 0:00:14]}  Rxb7 {[%clk 0:00:03]} 52. Rxe4 {[%clk 0:00:15]}  Rb5 {[%clk 0:00:02]} 53. Rxf4 {[%clk 0:00:15]}  Rxg5 {[%clk 0:00:02]} 54. Kf2 {[%clk 0:00:15]}  Rh5 {[%clk 0:00:03]} 55. Rf3 {[%clk 0:00:12]}  Kg6 {[%clk 0:00:03]} 56. Kg1 {[%clk 0:00:12]}  Kg5 {[%clk 0:00:03]} 57. Kh2 {[%clk 0:00:12]}  Rh8 {[%clk 0:00:03]} 58. Rb3 {[%clk 0:00:12]}  Re8 {[%clk 0:00:03]} 59. Rb5+ {[%clk 0:00:12]}  Kg4 {[%clk 0:00:03]} 60. Rb4+ {[%clk 0:00:12]}  Kg5 {[%clk 0:00:04]} 61. Rb3 {[%clk 0:00:13]}  Re5 {[%clk 0:00:04]} 62. Kh3 {[%clk 0:00:13]}  Rd5 {[%clk 0:00:04]} 63. Re3 {[%clk 0:00:13]}  Rc5 {[%clk 0:00:04]} 64. Rf3 {[%clk 0:00:13]}  Rb5 {[%clk 0:00:04]} 65. Rd3 {[%clk 0:00:14]}  Rc5 {[%clk 0:00:04]} 66. Rd4 {[%clk 0:00:14]}  Rc3+ {[%clk 0:00:04]} 67. Kh2 {[%clk 0:00:15]}  Rb3 {[%clk 0:00:04]} 68. Re4 {[%clk 0:00:15]}  Rc3 {[%clk 0:00:04]} 69. Re5+ {[%clk 0:00:14]}  Kg4 {[%clk 0:00:04]} 70. Re8 {[%clk 0:00:15]}  Rb3 {[%clk 0:00:04]} 71. Rg8+ {[%clk 0:00:16]}  Kf4 {[%clk 0:00:04]} 72. Rg7 {[%clk 0:00:16]}  Rc3 {[%clk 0:00:04]} 73. Kg1 {[%clk 0:00:15]}  Rb3 {[%clk 0:00:04]} 74. Kf2 {[%clk 0:00:16]}  Rb2+ {[%clk 0:00:04]} 75. Kg1 {[%clk 0:00:16]}  Rb3 {[%clk 0:00:04]} 76. Kh2 {[%clk 0:00:17]}  Rc3 {[%clk 0:00:05]} 77. Rf7+ {[%clk 0:00:17]}  Kg4 {[%clk 0:00:05]} 78. Rf8 {[%clk 0:00:18]}  Rb3 {[%clk 0:00:05]} 79. Rf3 {[%clk 0:00:18]}  Rxf3 {[%clk 0:00:04]} 80. gxf3+ {[%clk 0:00:19]}  Kxf3 {[%clk 0:00:05]} 81. Kh3 {[%clk 0:00:20]}  Kf4 {[%clk 0:00:06]} 82. Kxh4 {[%clk 0:00:21]} 1/2-1/2


[Site "https://www.chess.com"]

[Event "Titled Tuesday Blitz April 11 Early 2023"]
[White "Kabilov, Amin"]
[Black "Bocharov, Dmitry"]
[WhiteFideId "14700859"]
[BlackFideId "4138716"]
[WhiteElo "2110"]
[BlackElo "2469"]
[Result "0-1"]
[Round "01"]
[TimeControl "180+2"]
[Date "2023.04.11"]
[WhiteClock "0:00:12"]
[BlackClock "0:01:37"]

1. e4 {[%clk 0:02:58]}  c5 {[%clk 0:02:59]} 2. Nf3 {[%clk 0:02:57]}  Nc6 {[%clk 0:02:58]} 3. Nc3 {[%clk 0:02:57]}  Nf6 {[%clk 0:02:52]} 4. g3 {[%clk 0:02:51]}  d6 {[%clk 0:02:50]} 5. Bg2 {[%clk 0:02:51]}  g6 {[%clk 0:02:50]} 6. O-O {[%clk 0:02:51]}  Bg7 {[%clk 0:02:51]} 7. d4 {[%clk 0:02:42]}  cxd4 {[%clk 0:02:51]} 8. Nxd4 {[%clk 0:02:39]}  O-O {[%clk 0:02:52]} 9. h3 {[%clk 0:01:45]}  Bd7 {[%clk 0:02:45]} 10. Be3 {[%clk 0:01:43]}  a6 {[%clk 0:02:42]} 11. Qe2 {[%clk 0:01:35]}  Rc8 {[%clk 0:02:39]} 12. Nxc6 {[%clk 0:01:32]}  Bxc6 {[%clk 0:02:38]} 13. Rfd1 {[%clk 0:01:30]}  Qa5 {[%clk 0:02:38]} 14. Nd5 {[%clk 0:01:13]}  Nxd5 {[%clk 0:02:34]} 15. exd5 {[%clk 0:01:13]}  Bb5 {[%clk 0:02:35]} 16. c4 {[%clk 0:00:45]}  Rxc4 {[%clk 0:02:31]} 17. Qd2 {[%clk 0:00:26]}  Qxd2 {[%clk 0:02:26]} 18. Rxd2 {[%clk 0:00:27]}  Rfc8 {[%clk 0:02:25]} 19. Kh2 {[%clk 0:00:24]}  Rc2 {[%clk 0:02:24]} 20. a4 {[%clk 0:00:19]}  Rxd2 {[%clk 0:02:14]} 21. Bxd2 {[%clk 0:00:19]}  Bd3 {[%clk 0:02:13]} 22. Ra3 {[%clk 0:00:17]}  Bc2 {[%clk 0:02:10]} 23. b4 {[%clk 0:00:17]}  Bd4 {[%clk 0:02:06]} 24. f4 {[%clk 0:00:16]}  f5 {[%clk 0:02:02]} 25. a5 {[%clk 0:00:14]}  Be4 {[%clk 0:01:59]} 26. Bxe4 {[%clk 0:00:14]}  fxe4 {[%clk 0:01:58]} 27. Ra2 {[%clk 0:00:13]}  e3 {[%clk 0:01:56]} 28. Be1 {[%clk 0:00:13]}  Kf7 {[%clk 0:01:49]} 29. Re2 {[%clk 0:00:13]}  e6 {[%clk 0:01:49]} 30. dxe6+ {[%clk 0:00:12]}  Kxe6 {[%clk 0:01:49]} 31. Kg2 {[%clk 0:00:13]}  Ba7 {[%clk 0:01:43]} 32. Kf3 {[%clk 0:00:13]}  d5 {[%clk 0:01:43]} 33. g4 {[%clk 0:00:12]}  d4 {[%clk 0:01:42]} 34. Rb2 {[%clk 0:00:12]}  Kd5 {[%clk 0:01:40]} 35. b5 {[%clk 0:00:12]}  Bc5 {[%clk 0:01:41]} 36. bxa6 {[%clk 0:00:12]}  bxa6 {[%clk 0:01:41]} 37. Rb7 {[%clk 0:00:13]}  d3 {[%clk 0:01:41]} 38. Rd7+ {[%clk 0:00:13]}  Kc4 {[%clk 0:01:41]} 39. Rxh7 {[%clk 0:00:11]}  d2 {[%clk 0:01:39]} 40. Bxd2 {[%clk 0:00:12]}  exd2 {[%clk 0:01:39]} 41. Ke2 {[%clk 0:00:12]}  Bb4 {[%clk 0:01:39]} 42. Kd1 {[%clk 0:00:12]}  Re8 {[%clk 0:01:37]} 0-1


[Site "https://www.chess.com"]

[Event "Titled Tuesday Blitz April 11 Early 2023"]
[White "krucki03"]
[Black "Javakhadze, Zurab"]
[BlackFideId "13603647"]
[WhiteElo "2396"]
[BlackElo "2381"]
[Result "0-1"]
[Round "01"]
[TimeControl "180+2"]
[Date "2023.04.11"]
[WhiteClock "0:00:05"]
[BlackClock "0:00:10"]

1. e4 {[%clk 0:02:56]}  e5 {[%clk 0:03:00]} 2. Nf3 {[%clk 0:02:56]}  Nc6 {[%clk 0:03:01]} 3. Nc3 {[%clk 0:02:56]}  Nf6 {[%clk 0:03:01]} 4. a3 {[%clk 0:02:57]}  d6 {[%clk 0:02:54]} 5. d4 {[%clk 0:02:56]}  Bg4 {[%clk 0:02:54]} 6. Bb5 {[%clk 0:02:56]}  exd4 {[%clk 0:02:46]} 7. Qxd4 {[%clk 0:02:55]}  Be7 {[%clk 0:02:39]} 8. e5 {[%clk 0:02:45]}  dxe5 {[%clk 0:01:58]} 9. Qxd8+ {[%clk 0:02:40]}  Rxd8 {[%clk 0:01:52]} 10. Nxe5 {[%clk 0:02:38]}  O-O {[%clk 0:01:50]} 11. Bxc6 {[%clk 0:02:25]}  bxc6 {[%clk 0:01:36]} 12. Nxc6 {[%clk 0:02:08]}  Rde8 {[%clk 0:01:35]} 13. Nxe7+ {[%clk 0:02:08]}  Rxe7+ {[%clk 0:01:36]} 14. Be3 {[%clk 0:02:08]}  Rb8 {[%clk 0:01:35]} 15. O-O {[%clk 0:02:06]}  Rxb2 {[%clk 0:01:33]} 16. Rab1 {[%clk 0:01:50]}  Rxc2 {[%clk 0:01:31]} 17. Nd5 {[%clk 0:01:50]}  Re8 {[%clk 0:01:22]} 18. Nxf6+ {[%clk 0:01:42]}  gxf6 {[%clk 0:01:22]} 19. Bxa7 {[%clk 0:01:36]}  Ra8 {[%clk 0:01:22]} 20. Bd4 {[%clk 0:01:29]}  Kg7 {[%clk 0:01:21]} 21. Rb3 {[%clk 0:01:22]}  Ra4 {[%clk 0:01:15]} 22. Bb2 {[%clk 0:01:13]}  h5 {[%clk 0:01:03]} 23. h3 {[%clk 0:01:12]}  Be2 {[%clk 0:00:52]} 24. Rc1 {[%clk 0:01:06]}  Rxc1+ {[%clk 0:00:50]} 25. Bxc1 {[%clk 0:01:07]}  f5 {[%clk 0:00:45]} 26. Rc3 {[%clk 0:00:41]}  Bc4 {[%clk 0:00:42]} 27. Bf4 {[%clk 0:00:31]}  c6 {[%clk 0:00:41]} 28. Be5+ {[%clk 0:00:31]}  f6 {[%clk 0:00:33]} 29. Bd6 {[%clk 0:00:31]}  Bd5 {[%clk 0:00:32]} 30. Bb4 {[%clk 0:00:30]}  Kf7 {[%clk 0:00:32]} 31. Re3 {[%clk 0:00:29]}  Ra7 {[%clk 0:00:26]} 32. f4 {[%clk 0:00:24]}  Be4 {[%clk 0:00:26]} 33. Re2 {[%clk 0:00:21]}  Rd7 {[%clk 0:00:25]} 34. Rd2 {[%clk 0:00:21]}  Rb7 {[%clk 0:00:23]} 35. Rd1 {[%clk 0:00:13]}  Rb5 {[%clk 0:00:22]} 36. Rc1 {[%clk 0:00:12]}  Rd5 {[%clk 0:00:21]} 37. Kf2 {[%clk 0:00:12]}  Rd3 {[%clk 0:00:21]} 38. Rc3 {[%clk 0:00:11]}  Rd2+ {[%clk 0:00:21]} 39. Ke3 {[%clk 0:00:07]}  Rxg2 {[%clk 0:00:21]} 40. a4 {[%clk 0:00:07]}  Ra2 {[%clk 0:00:16]} 41. a5 {[%clk 0:00:07]}  Ke6 {[%clk 0:00:16]} 42. Kd4 {[%clk 0:00:06]}  Kd7 {[%clk 0:00:14]} 43. Kc5 {[%clk 0:00:07]}  Kc7 {[%clk 0:00:14]} 44. Rg3 {[%clk 0:00:06]}  Rc2+ {[%clk 0:00:13]} 45. Rc3 {[%clk 0:00:06]}  Rd2 {[%clk 0:00:12]} 46. a6 {[%clk 0:00:05]}  Rd5+ {[%clk 0:00:10]} 47. Kc4 {[%clk 0:00:05]}  Kb6 {[%clk 0:00:11]} 48. Ra3 {[%clk 0:00:06]}  c5 {[%clk 0:00:09]} 49. a7 {[%clk 0:00:05]}  Rd4+ {[%clk 0:00:09]} 50. Kc3 {[%clk 0:00:04]}  cxb4+ {[%clk 0:00:10]} 51. Kxd4 {[%clk 0:00:05]}  bxa3 {[%clk 0:00:10]} 0-1


[Site "https://www.chess.com"]

[Event "Titled Tuesday Blitz April 11 Early 2023"]
[White "Petrov, Martin"]
[Black "Carre, Sylvain"]
[WhiteFideId "2911086"]
[BlackFideId "642118"]
[WhiteElo "2430"]
[BlackElo "2105"]
[Result "1-0"]
[Round "01"]
[TimeControl "180+2"]
[Date "2023.04.11"]
[WhiteClock "0:00:41"]
[BlackClock "0:00:02"]

1. Nf3 {[%clk 0:03:00]}  d5 {[%clk 0:02:59]} 2. e3 {[%clk 0:02:57]}  Nf6 {[%clk 0:03:00]} 3. d4 {[%clk 0:02:55]}  Bf5 {[%clk 0:02:59]} 4. c4 {[%clk 0:02:53]}  c6 {[%clk 0:03:00]} 5. Nc3 {[%clk 0:02:52]}  e6 {[%clk 0:03:00]} 6. Bd3 {[%clk 0:02:52]}  Bxd3 {[%clk 0:03:00]} 7. Qxd3 {[%clk 0:02:53]}  Nbd7 {[%clk 0:03:00]} 8. O-O {[%clk 0:02:53]}  Be7 {[%clk 0:03:01]} 9. e4 {[%clk 0:02:51]}  dxe4 {[%clk 0:03:01]} 10. Nxe4 {[%clk 0:02:52]}  Nxe4 {[%clk 0:03:00]} 11. Qxe4 {[%clk 0:02:53]}  Nf6 {[%clk 0:03:00]} 12. Qe2 {[%clk 0:02:52]}  Qc7 {[%clk 0:03:00]} 13. Bg5 {[%clk 0:02:48]}  h6 {[%clk 0:02:59]} 14. Bh4 {[%clk 0:02:48]}  g5 {[%clk 0:02:58]} 15. Bg3 {[%clk 0:02:47]}  Bd6 {[%clk 0:02:58]} 16. Rfd1 {[%clk 0:02:22]}  Rd8 {[%clk 0:02:55]} 17. Rac1 {[%clk 0:02:17]}  Bxg3 {[%clk 0:02:54]} 18. hxg3 {[%clk 0:02:18]}  O-O {[%clk 0:02:38]} 19. Ne5 {[%clk 0:02:16]}  Kg7 {[%clk 0:02:34]} 20. b4 {[%clk 0:02:13]}  Rh8 {[%clk 0:02:27]} 21. a4 {[%clk 0:02:08]}  Nd7 {[%clk 0:02:19]} 22. Nd3 {[%clk 0:02:02]}  Nf6 {[%clk 0:02:17]} 23. Ne5 {[%clk 0:01:53]}  Nd7 {[%clk 0:02:17]} 24. f4 {[%clk 0:01:54]}  Nxe5 {[%clk 0:02:05]} 25. fxe5 {[%clk 0:01:47]}  Qe7 {[%clk 0:01:43]} 26. b5 {[%clk 0:01:44]}  h5 {[%clk 0:01:27]} 27. Rd3 {[%clk 0:01:37]}  h4 {[%clk 0:01:23]} 28. Qg4 {[%clk 0:01:19]}  Rh6 {[%clk 0:01:19]} 29. Rf1 {[%clk 0:01:16]}  hxg3 {[%clk 0:01:08]} 30. Rxg3 {[%clk 0:01:09]}  Rg6 {[%clk 0:01:08]} 31. Rgf3 {[%clk 0:01:07]}  Rh8 {[%clk 0:00:57]} 32. bxc6 {[%clk 0:01:01]}  bxc6 {[%clk 0:00:57]} 33. Rxf7+ {[%clk 0:01:01]}  Qxf7 {[%clk 0:00:57]} 34. Rxf7+ {[%clk 0:01:02]}  Kxf7 {[%clk 0:00:58]} 35. Qf3+ {[%clk 0:01:03]}  Kg7 {[%clk 0:00:54]} 36. Qxc6 {[%clk 0:01:02]}  g4 {[%clk 0:00:52]} 37. Qd7+ {[%clk 0:01:00]}  Kh6 {[%clk 0:00:50]} 38. d5 {[%clk 0:00:49]}  Rf8 {[%clk 0:00:39]} 39. dxe6 {[%clk 0:00:47]}  Rf5 {[%clk 0:00:05]} 40. e7 {[%clk 0:00:40]}  Rxe5 {[%clk 0:00:03]} 41. e8=Q {[%clk 0:00:40]}  Rxe8 {[%clk 0:00:02]} 42. Qxe8 {[%clk 0:00:41]} 1-0


[Site "https://www.chess.com"]

[Event "Titled Tuesday Blitz April 11 Early 2023"]
[White "Tan, Zhongyi"]
[Black "Mbonu, David"]
[WhiteFideId "8603642"]
[BlackFideId "30927420"]
[WhiteElo "2519"]
[BlackElo "2367"]
[Result "1-0"]
[Round "01"]
[TimeControl "180+2"]
[Date "2023.04.11"]
[WhiteClock "0:00:08"]
[BlackClock "0:00:05"]

1. d4 {[%clk 0:02:52]}  Nf6 {[%clk 0:02:58]} 2. c4 {[%clk 0:02:51]}  e6 {[%clk 0:02:55]} 3. Nc3 {[%clk 0:02:50]}  Bb4 {[%clk 0:02:54]} 4. Nf3 {[%clk 0:02:50]}  O-O {[%clk 0:02:53]} 5. e3 {[%clk 0:02:49]}  d5 {[%clk 0:02:53]} 6. Bd2 {[%clk 0:02:49]}  Re8 {[%clk 0:02:46]} 7. Bd3 {[%clk 0:02:46]}  b6 {[%clk 0:02:41]} 8. cxd5 {[%clk 0:02:45]}  exd5 {[%clk 0:02:40]} 9. O-O {[%clk 0:02:45]}  Bb7 {[%clk 0:02:39]} 10. Ne5 {[%clk 0:02:32]}  a6 {[%clk 0:02:25]} 11. Qf3 {[%clk 0:02:29]}  Nbd7 {[%clk 0:02:14]} 12. Nxd7 {[%clk 0:01:48]}  Qxd7 {[%clk 0:02:09]} 13. Rac1 {[%clk 0:01:49]}  Bd6 {[%clk 0:02:03]} 14. Rfd1 {[%clk 0:01:39]}  Ne4 {[%clk 0:01:53]} 15. Be1 {[%clk 0:01:27]}  Re6 {[%clk 0:01:49]} 16. Qh3 {[%clk 0:01:14]}  Qe7 {[%clk 0:01:40]} 17. g3 {[%clk 0:01:08]}  Rh6 {[%clk 0:01:36]} 18. Qg2 {[%clk 0:01:08]}  Re8 {[%clk 0:01:34]} 19. Nxe4 {[%clk 0:01:02]}  dxe4 {[%clk 0:01:33]} 20. Be2 {[%clk 0:00:59]}  Bc8 {[%clk 0:01:33]} 21. h4 {[%clk 0:00:58]}  g5 {[%clk 0:01:26]} 22. h5 {[%clk 0:00:57]}  g4 {[%clk 0:01:20]} 23. a3 {[%clk 0:00:55]}  Rxh5 {[%clk 0:01:02]} 24. Bb4 {[%clk 0:00:55]}  Rd8 {[%clk 0:00:40]} 25. Rc2 {[%clk 0:00:54]}  Qf6 {[%clk 0:00:15]} 26. Rdc1 {[%clk 0:00:52]}  c5 {[%clk 0:00:15]} 27. dxc5 {[%clk 0:00:51]}  bxc5 {[%clk 0:00:16]} 28. Bxc5 {[%clk 0:00:48]}  Bxc5 {[%clk 0:00:17]} 29. Rxc5 {[%clk 0:00:48]}  Rxc5 {[%clk 0:00:15]} 30. Rxc5 {[%clk 0:00:49]}  Bf5 {[%clk 0:00:15]} 31. Qf1 {[%clk 0:00:46]}  Rd2 {[%clk 0:00:10]} 32. Bxa6 {[%clk 0:00:28]}  Rxb2 {[%clk 0:00:10]} 33. Bc8 {[%clk 0:00:22]}  Bxc8 {[%clk 0:00:09]} 34. Rxc8+ {[%clk 0:00:23]}  Kg7 {[%clk 0:00:08]} 35. Rc4 {[%clk 0:00:21]}  h5 {[%clk 0:00:07]} 36. Rxe4 {[%clk 0:00:20]}  Qc6 {[%clk 0:00:07]} 37. Rd4 {[%clk 0:00:19]}  Rc2 {[%clk 0:00:07]} 38. Rd1 {[%clk 0:00:18]}  Qf3 {[%clk 0:00:07]} 39. Ra1 {[%clk 0:00:15]}  h4 {[%clk 0:00:07]} 40. Qg2 {[%clk 0:00:13]}  hxg3 {[%clk 0:00:07]} 41. Qxg3 {[%clk 0:00:12]}  Qe2 {[%clk 0:00:06]} 42. a4 {[%clk 0:00:11]}  Rd2 {[%clk 0:00:07]} 43. a5 {[%clk 0:00:10]}  Rd1+ {[%clk 0:00:07]} 44. Rxd1 {[%clk 0:00:10]}  Qxd1+ {[%clk 0:00:08]} 45. Kh2 {[%clk 0:00:10]}  Qd7 {[%clk 0:00:08]} 46. Qe5+ {[%clk 0:00:10]}  Kg8 {[%clk 0:00:06]} 47. a6 {[%clk 0:00:09]}  Kf8 {[%clk 0:00:06]} 48. Kg3 {[%clk 0:00:08]}  Qa7 {[%clk 0:00:05]} 49. Qd6+ {[%clk 0:00:08]}  Kg8 {[%clk 0:00:05]} 50. Kxg4 {[%clk 0:00:08]} 1-0


[Site "https://www.chess.com"]

[Event "Titled Tuesday Blitz April 11 Early 2023"]
[White "Bronstein, Or"]
[Black "Harriott, Tyrell"]
[WhiteFideId "2815770"]
[BlackFideId "2086484"]
[WhiteElo "2356"]
[BlackElo "2107"]
[Result "0-1"]
[Round "01"]
[TimeControl "180+2"]
[Date "2023.04.11"]
[WhiteClock "0:00:39"]
[BlackClock "0:01:01"]

1. d4 {[%clk 0:02:59]}  e6 {[%clk 0:02:59]} 2. Nf3 {[%clk 0:02:58]}  d5 {[%clk 0:02:59]} 3. g3 {[%clk 0:02:58]}  Bd6 {[%clk 0:02:59]} 4. Bg2 {[%clk 0:02:58]}  f5 {[%clk 0:03:00]} 5. Bf4 {[%clk 0:02:56]}  Nf6 {[%clk 0:03:00]} 6. O-O {[%clk 0:02:55]}  Bxf4 {[%clk 0:02:57]} 7. gxf4 {[%clk 0:02:56]}  O-O {[%clk 0:02:57]} 8. e3 {[%clk 0:02:55]}  b6 {[%clk 0:02:56]} 9. Ne5 {[%clk 0:02:54]}  Nbd7 {[%clk 0:02:55]} 10. c4 {[%clk 0:02:52]}  Nxe5 {[%clk 0:02:48]} 11. fxe5 {[%clk 0:02:47]}  Ne4 {[%clk 0:02:48]} 12. cxd5 {[%clk 0:02:46]}  exd5 {[%clk 0:02:48]} 13. Nc3 {[%clk 0:02:40]}  Ba6 {[%clk 0:02:47]} 14. Re1 {[%clk 0:02:36]}  Qh4 {[%clk 0:02:45]} 15. Qf3 {[%clk 0:02:17]}  c6 {[%clk 0:02:38]} 16. Rac1 {[%clk 0:02:12]}  Rae8 {[%clk 0:02:03]} 17. Ne2 {[%clk 0:01:58]}  Re6 {[%clk 0:02:00]} 18. Ng3 {[%clk 0:01:48]}  Rh6 {[%clk 0:01:38]} 19. h3 {[%clk 0:01:44]}  Ng5 {[%clk 0:01:30]} 20. Qxf5 {[%clk 0:00:54]}  Rxf5 {[%clk 0:01:26]} 21. Nxf5 {[%clk 0:00:55]}  Nxh3+ {[%clk 0:01:26]} 22. Bxh3 {[%clk 0:00:55]}  Qxh3 {[%clk 0:01:20]} 23. Nxh6+ {[%clk 0:00:55]}  Qxh6 {[%clk 0:01:16]} 24. Rc3 {[%clk 0:00:46]}  Bd3 {[%clk 0:01:11]} 25. f3 {[%clk 0:00:41]}  Qg5+ {[%clk 0:01:06]} 26. Kf2 {[%clk 0:00:41]}  Qh4+ {[%clk 0:01:05]} 27. Kg2 {[%clk 0:00:40]}  Qxe1 {[%clk 0:01:05]} 28. e6 {[%clk 0:00:40]}  Kf8 {[%clk 0:01:02]} 29. Rxc6 {[%clk 0:00:39]}  Qxe3 {[%clk 0:01:01]} 0-1


[Site "https://www.chess.com"]

[Event "Titled Tuesday Blitz April 11 Early 2023"]
[White "Dronavalli, Harika"]
[Black "Mogirzan, Matei-Valeriu"]
[WhiteFideId "5015197"]
[BlackFideId "1257455"]
[WhiteElo "2432"]
[BlackElo "1733"]
[Result "1-0"]
[Round "01"]
[TimeControl "180+2"]
[Date "2023.04.11"]
[WhiteClock "0:00:19"]
[BlackClock "0:00:02"]

1. e4 {[%clk 0:02:57]}  e5 {[%clk 0:02:59]} 2. Nf3 {[%clk 0:02:55]}  Nf6 {[%clk 0:03:00]} 3. Nc3 {[%clk 0:02:55]}  Bc5 {[%clk 0:02:59]} 4. Bc4 {[%clk 0:02:46]}  Nc6 {[%clk 0:02:57]} 5. O-O {[%clk 0:02:41]}  d6 {[%clk 0:02:57]} 6. d3 {[%clk 0:02:42]}  Bg4 {[%clk 0:02:53]} 7. h3 {[%clk 0:02:42]}  Bxf3 {[%clk 0:02:37]} 8. Qxf3 {[%clk 0:02:41]}  Nd4 {[%clk 0:02:38]} 9. Qd1 {[%clk 0:02:41]}  c6 {[%clk 0:02:37]} 10. a3 {[%clk 0:02:39]}  b5 {[%clk 0:02:36]} 11. Ba2 {[%clk 0:02:39]}  a5 {[%clk 0:02:36]} 12. Ne2 {[%clk 0:02:38]}  O-O {[%clk 0:02:30]} 13. Nxd4 {[%clk 0:02:37]}  Bxd4 {[%clk 0:02:30]} 14. c3 {[%clk 0:02:38]}  Bc5 {[%clk 0:02:27]} 15. d4 {[%clk 0:02:35]}  Bb6 {[%clk 0:02:24]} 16. Bb1 {[%clk 0:02:34]}  Re8 {[%clk 0:02:16]} 17. Re1 {[%clk 0:02:31]}  Nd7 {[%clk 0:02:12]} 18. Qg4 {[%clk 0:02:07]}  exd4 {[%clk 0:01:40]} 19. Bh6 {[%clk 0:02:05]}  g6 {[%clk 0:01:31]} 20. Bg5 {[%clk 0:01:48]}  Qc8 {[%clk 0:01:15]} 21. Qg3 {[%clk 0:01:46]}  Ne5 {[%clk 0:01:10]} 22. Kh1 {[%clk 0:01:39]}  dxc3 {[%clk 0:01:02]} 23. bxc3 {[%clk 0:01:39]}  Bd8 {[%clk 0:01:03]} 24. f4 {[%clk 0:01:09]}  Bxg5 {[%clk 0:00:55]} 25. Qxg5 {[%clk 0:00:55]}  Nc4 {[%clk 0:00:52]} 26. Ba2 {[%clk 0:00:53]}  Qd8 {[%clk 0:00:48]} 27. Qg3 {[%clk 0:00:49]}  Qf6 {[%clk 0:00:40]} 28. Rad1 {[%clk 0:00:47]}  d5 {[%clk 0:00:31]} 29. e5 {[%clk 0:00:47]}  Qg7 {[%clk 0:00:29]} 30. a4 {[%clk 0:00:45]}  b4 {[%clk 0:00:26]} 31. Bxc4 {[%clk 0:00:34]}  dxc4 {[%clk 0:00:27]} 32. Rd4 {[%clk 0:00:34]}  Rad8 {[%clk 0:00:16]} 33. Rxc4 {[%clk 0:00:32]}  b3 {[%clk 0:00:14]} 34. Rxc6 {[%clk 0:00:30]}  Rd2 {[%clk 0:00:14]} 35. Qe3 {[%clk 0:00:27]}  Red8 {[%clk 0:00:13]} 36. Rb6 {[%clk 0:00:27]}  b2 {[%clk 0:00:10]} 37. Kh2 {[%clk 0:00:17]}  Qf8 {[%clk 0:00:08]} 38. Rb1 {[%clk 0:00:16]}  Qa3 {[%clk 0:00:06]} 39. e6 {[%clk 0:00:16]}  Qe7 {[%clk 0:00:05]} 40. exf7+ {[%clk 0:00:14]}  Kxf7 {[%clk 0:00:02]} 41. Qxe7+ {[%clk 0:00:14]}  Kxe7 {[%clk 0:00:03]} 42. R6xb2 {[%clk 0:00:14]}  Rxb2 {[%clk 0:00:04]} 43. Rxb2 {[%clk 0:00:15]}  Rd3 {[%clk 0:00:04]} 44. Rb5 {[%clk 0:00:15]}  Rxc3 {[%clk 0:00:04]} 45. Rxa5 {[%clk 0:00:16]}  Ra3 {[%clk 0:00:04]} 46. Ra7+ {[%clk 0:00:17]}  Kf6 {[%clk 0:00:05]} 47. a5 {[%clk 0:00:17]}  h5 {[%clk 0:00:04]} 48. Ra8 {[%clk 0:00:18]}  Kg7 {[%clk 0:00:04]} 49. a6 {[%clk 0:00:18]}  Kh7 {[%clk 0:00:04]} 50. g4 {[%clk 0:00:18]}  h4 {[%clk 0:00:04]} 51. f5 {[%clk 0:00:19]}  gxf5 {[%clk 0:00:03]} 52. gxf5 {[%clk 0:00:19]}  Kg7 {[%clk 0:00:03]} 53. a7 {[%clk 0:00:20]}  Ra2+ {[%clk 0:00:03]} 54. Kg1 {[%clk 0:00:20]}  Ra3 {[%clk 0:00:03]} 55. f6+ {[%clk 0:00:18]}  Kf7 {[%clk 0:00:03]} 56. Rh8 {[%clk 0:00:18]}  Ra1+ {[%clk 0:00:03]} 57. Kf2 {[%clk 0:00:18]}  Ra2+ {[%clk 0:00:03]} 58. Ke3 {[%clk 0:00:18]}  Ra3+ {[%clk 0:00:04]} 59. Kd2 {[%clk 0:00:18]}  Ra2+ {[%clk 0:00:04]} 60. Kc1 {[%clk 0:00:19]}  Ra1+ {[%clk 0:00:04]} 61. Kb2 {[%clk 0:00:19]}  Ra6 {[%clk 0:00:02]} 62. a8=Q {[%clk 0:00:19]}  Rb6+ {[%clk 0:00:02]} 63. Kc3 {[%clk 0:00:19]} 1-0


[Site "https://www.chess.com"]